Cogmind - Beta 9.4 @@@ ROGUE MODE // 2020.02.28 @ 20:03:12 // Winter2019/RPGLIKE Player: Wizzeh Result: Destroyed by P-60 Hacker with Shock Rifle Performance ------------- Evolutions (3) 1500 Regions Visited (7) 1400 Robots Destroyed (74) 370 Value Destroyed (2119) 2119 Prototype IDs (22) 440 Alien Tech Used (0) 0 Bonus (321) 321 TOTAL SCORE: 6150 Bonus ------- Follower Combat Kills 21 Aligned with FarCom 300 Cogmind --------- Core Integrity 0/1500 Matter 19/350 Energy 138/140 System Corruption 1% Temperature Cool (0) Movement Walking (180) Ox2 Location -7/Factory Parts ------- > --- POWER (1) -------- Light Deuterium Engine > --- PROPULSION (2) --- Aluminum Leg Aluminum Leg > --- UTILITY (4) ------ Small Matter Pod Advanced Targeting Computer Hardened Medium Armor Plating Field Recycling Unit > --- WEAPON (4) ------- Flak Cannon Flak Cannon Flak Cannon Flak Cannon > --- INVENTORY (0) ---- (None) Peak State ------------ > --- POWER ------------ Light Deuterium Engine > --- PROPULSION ------- Aluminum Leg Aluminum Leg > --- UTILITY ---------- Small Matter Pod Advanced Targeting Computer Hardened Medium Armor Plating Field Recycling Unit > --- WEAPON ----------- Flak Cannon Flak Cannon Flak Cannon Flak Cannon > --- INVENTORY -------- (None) [Rating: 26] Favorites ----------- Power Improved Ion Engine Engine Improved Ion Engine Propulsion Aluminum Leg Leg Aluminum Leg Wheel Wheel Hover Unit Hover Unit Flight Unit Flight Unit Utility Field Recycling Unit Device Field Recycling Unit Storage Small Matter Pod Processor Advanced Targeting Computer Protection Hardened Medium Armor Plating Weapon Flak Cannon Energy Gun Medium Laser Energy Cannon Light EM Pulse Cannon Ballistic Gun Light Assault Rifle Ballistic Cannon Flak Cannon Launcher Rocket Launcher Special Melee Weapon Datajack Build | -11 -10 -9 -9 -9 -8 -8 -7 ------- Run | Scr Mat Mat Min Exi Min Mat Fac Slots Evolved 7 | . 4 1 . . . 2 . Power . | . . . . . . . . Propulsion 1 | . 1 . . . . . . Utility 3 | . . 1 . . . 2 . Weapon 3 | . 3 . . . . . . Parts Attached 40 | 3 10 12 3 2 2 4 4 Power 4 | 1 . 2 . . . 1 . Engine 4 | 1 . 2 . . . 1 . Core . | . . . . . . . . Reactor . | . . . . . . . . Propulsion 6 | 1 3 1 . . 1 . . Treads . | . . . . . . . . Leg 2 | . . 1 . . 1 . . Wheel 1 | 1 . . . . . . . Hover 2 | . 2 . . . . . . Flight 1 | . 1 . . . . . . Utility 11 | . 1 1 2 1 . 3 3 Device 6 | . 1 1 2 . . . 2 Storage 2 | . . . . 1 . . 1 Processor 1 | . . . . . . 1 . Hackware . | . . . . . . . . Protection 2 | . . . . . . 2 . Artifact . | . . . . . . . . Weapon 19 | 1 6 8 1 1 1 . 1 Energy Gun 1 | 1 . . . . . . . Energy Cannon 5 | . 4 1 . . . . . Ballistic Gun 3 | . 2 . . . 1 . . Ballistic Cannon 7 | . . 6 . . . . 1 Launcher 1 | . . 1 . . . . . Special Weapon . | . . . . . . . . Impact Weapon . | . . . . . . . . Slashing Weapon . | . . . . . . . . Piercing Weapon . | . . . . . . . . Special Melee Weapon 2 | . . . 1 1 . . . Unidentified Prototypes . | . . . . . . . . Parts Lost 5 | . 2 3 . . . . . Power . | . . . . . . . . Propulsion 3 | . 1 2 . . . . . Utility 1 | . . 1 . . . . . Weapon 1 | . 1 . . . . . . Highest Loss Streak 2 | . 2 2 . . . . . Average Slot Usage (%) 89 | . 79 95 74 85 95 100 99 Engine 11 | . 19 11 11 11 11 9 9 Leg 12 | . . 6 11 11 19 18 18 Hover 3 | . 6 15 . . . . . Device 12 | . 1 17 17 11 11 9 9 Storage 5 | . . . . 8 11 9 9 Processor 1 | . . . . . . 6 9 Protection 1 | . . . . . . 8 9 Energy Cannon 1 | . 20 2 . . . . . Ballistic Gun 1 | . 3 . . . 5 9 . Ballistic Cannon 31 | . . 37 33 33 33 28 35 Special Melee Weapon 3 | . . . 1 10 3 . . Naked Turns . | . . . . . . . . Heaviest Build 46 | 7 22 33 34 35 35 41 46 Greatest Support 20 | 10 12 12 10 10 20 20 20 Greatest Overweight (x) 6 | . 6 5 3 3 3 2 2 Average Overweight (x) 1 | . . 2 2 3 1 1 1 Largest Inventory Capacity . | . . . . . . . . Average Capacity . | . . . . . . . . Most Carried . | . . . . . . . . Average Carried . | . . . . . . . . Final Capacity . | . . . . . . . . Final Carried . | . . . . . . . . Class Distribution -------------------- 60% | Gunner 16% | Skirmisher 15% | Scavenger-Gunner 7% | Mutant Dominant Class ---------------- Mutant | -10/Materials Scavenger-Gunner | -9/Materials Gunner | -9/Mines Gunner | -9/Exiles Skirmisher | -8/Mines Gunner | -8/Materials Gunner | -7/Factory Resources | -11 -10 -9 -9 -9 -8 -8 -7 ----------- Run | Scr Mat Mat Min Exi Min Mat Fac Matter Collected 2104 | 230 61 394 399 59 395 429 137 Remotely . | . . . . . . . . Salvage Created 1504 | . 310 419 50 . 401 187 137 Parts 126 | . 22 55 2 . 18 23 6 Haulers Intercepted 2 | . . 1 . . . 1 . Recyclers Shooed 1 | . . . . . . 1 . Parts Field Recycled 14 | . . . 1 2 3 4 4 Retrieved Matter 91 | . . . 1 14 7 33 36 Parts Self-Destructed . | . . . . . . . . Prevented . | . . . . . . . . Kills | -11 -10 -9 -9 -9 -8 -8 -7 ------- Run | Scr Mat Mat Min Exi Min Mat Fac Combat Hostiles Destroyed 51 | . 8 15 2 . 9 9 8 Guns 9 | . 8 . . . 1 . . Cannons 40 | . . 13 2 . 8 9 8 AOE 2 | . . 2 . . . . . Classes Destroyed 12 | . 3 4 . . 3 1 1 Worker 4 | . . 4 . . . . . Builder 5 | . . 4 . . . . 1 Tunneler 1 | . . . . . 1 . . Hauler 2 | . . 1 . . . 1 . Recycler 3 | . . . . . 3 . . Operator 1 | . . . . . . 1 . Watcher 7 | . 2 2 . . . 2 1 Swarmer 14 | . 3 3 . . 4 4 . Grunt 23 | . 5 9 2 . 3 1 3 Duelist 2 | . . . . . . . 2 Sentry 8 | . . 3 . . . 3 2 Hunter 4 | . . . . . 2 1 1 Best Kill Streak 11 | . 2 11 2 . 4 4 5 Combat Bots Only 5 | . 2 5 2 . 4 4 5 Max Kills in Single Turn 3 | . 1 3 1 . 2 1 1 Gunslinging . | . . . . . . . . Exploded 2 | . . 2 . . . . . Melee . | . . . . . . . . Uniques/NPCs Destroyed . | . . . . . . . . Combat | -11 -10 -9 -9 -9 -8 -8 -7 -------- Run | Scr Mat Mat Min Exi Min Mat Fac Damage Taken 3781 | . 600 1601 128 . 207 181 1064 Core 2924 | . 490 1313 104 . 162 119 736 Absorbed by Shields . | . . . . . . . . Redirected to Core 2158 | . 323 898 76 . 153 113 595 Core Remaining (%) 55 | 100 58 . . . 25 39 . Volleys Fired 148 | . 55 27 4 . 19 20 23 Largest 4 | . 4 4 3 . 4 4 4 Hottest 224 | . 224 189 132 . 152 152 176 Shots Fired 378 | . 61 82 12 . 65 80 78 Gun 82 | . 53 . . . 9 20 . Cannon 291 | . 8 77 12 . 56 60 78 Launcher 5 | . . 5 . . . . . Special . | . . . . . . . . Kinetic 314 | . 5 74 12 . 65 80 78 Thermal 51 | . 48 3 . . . . . Explosive 5 | . . 5 . . . . . Electromagnetic 8 | . 8 . . . . . . Robot Hit Streak 35 | . 8 8 7 . 31 35 26 Robot Miss Streak 11 | . 3 11 6 . 10 8 6 Penetration Max . | . . . . . . . . Secondary Targets . | . . . . . . . . Shots Hit Robots 297 | . 38 56 11 . 54 63 75 Core Hits 234 | . 18 59 8 . 46 43 60 Critical Hits . | . . . . . . . . Critical Kills . | . . . . . . . . Critical Parts Destroyed . | . . . . . . . . Melee Attacks 1 | . . . . . 1 . . Impact . | . . . . . . . . Slashing . | . . . . . . . . Piercing . | . . . . . . . . Sneak Attacks 1 | . . . . . 1 . . Combat Hostiles . | . . . . . . . . Follow-up Attacks . | . . . . . . . . Damage Inflicted 4917 | . 513 1462 140 . 710 687 1405 Guns 664 | . 437 . . . 81 146 . Cannons 3369 | . 76 791 136 . 629 541 1196 Explosions 880 | . . 671 . . . . 209 Melee . | . . . . . . . . Ramming 4 | . . . 4 . . . . Kinetic 3506 | . 27 750 136 . 710 687 1196 Thermal 660 | . 410 41 . . . . 209 Explosive 255 | . . 255 . . . . . Electromagnetic 492 | . 76 416 . . . . . Impact . | . . . . . . . . Slashing . | . . . . . . . . Piercing . | . . . . . . . . Highest Corruption 3 | . 2 3 3 3 3 . 1 Average Corruption 2 | . 2 3 3 3 3 . 1 Corruption Purged . | . . . . . . . . Effects 67 | . 4 13 13 21 16 . . Message Errors 13 | . 2 1 2 4 4 . . Matter Fused 19 | . . 5 2 7 5 . . Heat Flow Errors 6 | . . 1 2 3 . . . Energy Discharges 10 | . . 2 4 3 1 . . Data Loss (minor) 14 | . 1 2 3 4 4 . . Targeting Errors 4 | . 1 2 . . 1 . . Weapon Failures 1 | . . . . . 1 . . Overload Shots . | . . . . . . . . Overflow Damage 90 | . . . . . . . 90 Projectiles . | . . . . . . . . Explosions 90 | . . . . . . . 90 Melee . | . . . . . . . . Knockbacks 65 | . . 12 8 . 13 6 26 Impact . | . . . . . . . . Kinetic 60 | . . 12 7 . 11 6 24 Secondary 5 | . . . 1 . 2 . 2 Self-Inflicted Damage 388 | . . 198 2 . . . 188 Shots 8 | . . 6 . . . . 2 Rammed 1 | . . . 1 . . . . Targets Rammed 1 | . . . 1 . . . . Kicked . | . . . . . . . . Crushed . | . . . . . . . . Highest Temperature 584 | . 206 584 270 188 . . 2 Average Temperature 159 | . 74 238 120 82 . . 2 Received Heat Transfer 1122 | . 174 642 75 . 9 36 186 Effects 26 | . 1 25 . . . . . Shutdowns 2 | . . 2 . . . . . Energy Bleed 2 | . . 2 . . . . . Interference 6 | . 1 5 . . . . . Short Circuit 3 | . . 3 . . . . . Damage (minor) 5 | . . 5 . . . . . Damage (major) 7 | . . 7 . . . . . Damage (core) 1 | . . 1 . . . . . Siege Activations . | . . . . . . . . Robots Corrupted . | . . . . . . . . Combat Hostiles . | . . . . . . . . Parts Fried 1 | . . 1 . . . . . Impact Corruptions . | . . . . . . . . Robots Melted . | . . . . . . . . Combat Hostiles . | . . . . . . . . Parts Melted 2 | . 2 . . . . . . Heat Transferred 1445 | . 1221 74 . . . . 150 Parts Sabotaged . | . . . . . . . . Parts Stolen . | . . . . . . . . Parts Stripped . | . . . . . . . . Power Chain Reactions . | . . . . . . . . Missiles Intercepted . | . . . . . . . . Alert | -11 -10 -9 -9 -9 -8 -8 -7 ------- Run | Scr Mat Mat Min Exi Min Mat Fac Peak Influence 394 | . 244 394 154 . 207 309 338 Average Influence 141 | . 124 233 54 . 65 186 153 Maximum Alert Level 1 | . 1 1 . . 1 1 1 Low Security (%) 69 | 100 65 33 100 . 96 69 67 Level 1 30 | . 34 66 . . 3 30 32 Level 2 . | . . . . . . . . Level 3 . | . . . . . . . . Level 4 . | . . . . . . . . Level 5 . | . . . . . . . . High Security . | . . . . . . . . Max Security . | . . . . . . . . Squads Dispatched 10 | . 1 4 . . . . 5 Investigation 1 | . . 1 . . . . . Extermination 1 | . . . . . . . 1 Reinforcement 5 | . 1 3 . . . . 1 Assault . | . . . . . . . . Garrison 3 | . . . . . . . 3 Intercept . | . . . . . . . . Construction Impeded 1 | . . 1 . . . . . Haulers Reinforced . | . . . . . . . . Stealth | -11 -10 -9 -9 -9 -8 -8 -7 --------- Run | Scr Mat Mat Min Exi Min Mat Fac Distress Signals 2 | . . . . . . 1 1 Communications Jammed . | . . . . . . . . Distress Signals . | . . . . . . . . Times Spotted 96 | . 16 35 2 . 12 13 18 Peak Tracking Total 7 | . 5 7 2 . 3 4 5 Tactical Retreats 5 | . 1 2 . . 1 1 . Traps | -11 -10 -9 -9 -9 -8 -8 -7 ------- Run | Scr Mat Mat Min Exi Min Mat Fac Traps Triggered 3 | . 1 1 . . . . 1 Indirectly . | . . . . . . . . Trap Hack Attempts . | . . . . . . . . Triggered . | . . . . . . . . Disarmed . | . . . . . . . . Reprogrammed . | . . . . . . . . Reused . | . . . . . . . . Traps Extracted . | . . . . . . . . Installed . | . . . . . . . . Triggered . | . . . . . . . . Machines | -11 -10 -9 -9 -9 -8 -8 -7 ---------- Run | Scr Mat Mat Min Exi Min Mat Fac Machines Disabled 14 | . . 9 . . . . 5 Max in Single Turn 5 | . . 4 . . . . 5 Machines Sabotaged . | . . . . . . . . Garrisons Compromised . | . . . . . . . . Overloaded Fab Kills . | . . . . . . . . Fab Network Shutdowns . | . . . . . . . . Hacking | -11 -10 -9 -9 -9 -8 -8 -7 --------- Run | Scr Mat Mat Min Exi Min Mat Fac Machines Accessed 5 | . . 2 . 1 . . 2 Terminals 4 | . . 2 . . . . 2 Fabricators . | . . . . . . . . Repair Stations . | . . . . . . . . Recycling Units . | . . . . . . . . Scanalyzers . | . . . . . . . . Garrison Access . | . . . . . . . . Total Hacks 6 | . . 3 . 1 . . 2 Successful 4 | . . 1 . 1 . . 2 Failed 2 | . . 2 . . . . . Catastrophic 1 | . . 1 . . . . . Database Lockouts . | . . . . . . . . Manual 2 | . . 1 . 1 . . . Terminals 5 | . . 3 . . . . 2 Fabricators . | . . . . . . . . Repair Stations . | . . . . . . . . Recycling Units . | . . . . . . . . Scanalyzers . | . . . . . . . . Garrison Access . | . . . . . . . . Terminal Hacks 4 | . . 1 . 1 . . 2 Record 1 | . . . . . . . 1 Branch Access Points 1 | . . 1 . . . . . Zone Layout 1 | . . . . . . . 1 EX-Prototype ID Bank 1 | . . . . 1 . . . Fabricator Hacks . | . . . . . . . . Repair Station Hacks . | . . . . . . . . Recycling Unit Hacks . | . . . . . . . . Scanalyzer . | . . . . . . . . Garrison Access Hacks . | . . . . . . . . Unauthorized Hacks . | . . . . . . . . Terminals . | . . . . . . . . Fabricators . | . . . . . . . . Repair Stations . | . . . . . . . . Recycling Units . | . . . . . . . . Scanalyzers . | . . . . . . . . Garrison Access . | . . . . . . . . Data Cores Recovered 1 | . . . . . . 1 . Used . | . . . . . . . . Hacking Detections . | . . . . . . . . Full Trace Events . | . . . . . . . . Feedback Events . | . . . . . . . . Feedback Blocked . | . . . . . . . . Robot Schematics Acquired . | . . . . . . . . Robots Built . | . . . . . . . . Matter . | . . . . . . . . Time . | . . . . . . . . Total Robot Build Rating . | . . . . . . . . Part Schematics Acquired . | . . . . . . . . Parts Built . | . . . . . . . . Matter . | . . . . . . . . Time . | . . . . . . . . Total Part Build Rating . | . . . . . . . . Parts Repaired . | . . . . . . . . Time . | . . . . . . . . Parts Recycled . | . . . . . . . . Recycled Matter . | . . . . . . . . Retrieved Matter . | . . . . . . . . Retrieved Components . | . . . . . . . . Parts Scanalyzed . | . . . . . . . . Part Schematics Acquired . | . . . . . . . . Parts Damaged . | . . . . . . . . Bothacking | -11 -10 -9 -9 -9 -8 -8 -7 ------------ Run | Scr Mat Mat Min Exi Min Mat Fac Used RIF Installer . | . . . . . . . . Robots Hacked . | . . . . . . . . Non-combat . | . . . . . . . . Combat . | . . . . . . . . Robot Hacks Applied . | . . . . . . . . Relay Couplers Released . | . . . . . . . . Robots Rewired . | . . . . . . . . Allies Hacked . | . . . . . . . . Hacks Repelled . | . . . . . . . . Allies | -11 -10 -9 -9 -9 -8 -8 -7 -------- Run | Scr Mat Mat Min Exi Min Mat Fac Total Allies 3 | . . . 3 . . . . Largest Group 3 | . . . 3 3 3 . . Highest-Rated Group 40 | . . . 40 40 40 . . Highest-Rated Ally 16 | . . . 16 16 16 . . Total Orders 1 | . . . . . 1 . . GOTO 1 | . . . . . 1 . . Ally Attacks 9 | . . . . . 9 . . Total Damage 87 | . . . . . 87 . . Kills 3 | . . . . . 3 . . Allies Corrupted . | . . . . . . . . Allies Melted . | . . . . . . . . Intel | -11 -10 -9 -9 -9 -8 -8 -7 ------- Run | Scr Mat Mat Min Exi Min Mat Fac Robot Analysis Total . | . . . . . . . . Derelict Logs Recovered 1 | . . . 1 . . . . Drone Launches . | . . . . . . . . Drone Recoveries . | . . . . . . . . Exploration | -11 -10 -9 -9 -9 -8 -8 -7 ------------- Run | Scr Mat Mat Min Exi Min Mat Fac Turns Passed 7301 | 39 466 1493 1016 1867 974 594 852 Spaces Moved 3693 | 46 288 748 531 887 499 325 369 Core 13 | 6 7 . . . . . . Treads . | . . . . . . . . Legs 3088 | . . 477 531 887 499 325 369 Wheels 187 | 40 147 . . . . . . Hover 375 | . 104 271 . . . . . Flight 30 | . 30 . . . . . . Fastest Speed 50 | 50 80 56 180 210 150 150 150 Average Speed 176 | 76 111 181 186 210 158 151 179 Slowest Speed 440 | 80 440 360 210 210 210 180 180 Overloaded Moves . | . . . . . . . . Propulsion Burnouts . | . . . . . . . . Robots Hopped . | . . . . . . . . Cave-ins Triggered . | . . . . . . . . Exploration Rate (%) 54 | 3 54 60 85 92 92 38 9 Regions Visited 7 Branch Regions 3 Pre-discovered Areas . | . . . . . . . . Known Exits Taken 1 | . . 1 . . . . . Unknown Exits Taken 6 | 1 1 . 1 1 1 1 . Scrap Searched 3 | . . . 2 . 1 . . Spaces Dug . | . . . . . . . . Terrain Destroyed 92 | . . 38 . . . . 54 Melee . | . . . . . . . . Projectile . | . . . . . . . . AOE 92 | . . 38 . . . . 54 Actions | -11 -10 -9 -9 -9 -8 -8 -7 --------- Run | Scr Mat Mat Min Exi Min Mat Fac Total 4214 | 48 373 827 547 891 640 380 508 Wait 240 | . 6 11 5 2 105 13 98 Move 3686 | 45 287 747 530 886 498 324 369 Hop . | . . . . . . . . Pick Up . | . . . . . . . . Fast Attach 36 | 3 10 10 3 2 2 2 4 Attach . | . . . . . . . . Detach . | . . . . . . . . Swap 4 | . . 2 . . . 2 . Drop 24 | . 3 11 2 1 1 2 4 Fire 148 | . 55 27 4 . 19 20 23 Melee 1 | . . . . . 1 . . Ram . | . . . . . . . . Kick 1 | . . . 1 . . . . Crush . | . . . . . . . . Escape Stasis . | . . . . . . . . Rewire . | . . . . . . . . Trap . | . . . . . . . . Miscellaneous 74 | . 12 19 2 . 14 17 10 Route ------- -11/Scrapyard -10/Materials (discovered 3 exits: *Mat / [*Min x2]) -9/Materials (discovered 5 exits: [*Mat] / *Min x2 / *Sto x2) -9/Mines (discovered 2 exits: [*Mat] / *Exi) -9/Exiles (discovered 2 exits: [*Min x2]) -8/Mines -8/Materials -7/Factory History --------- Turn | Location | Event 22 | -11/Scrapyard | Discovered new exit (range 12) 40 | -11/Scrapyard | Entered Materials 96 | -10/Materials | Discovered new exit (range 11) 287 | -10/Materials | Upgraded with Weapon slot (x1) 312 | -10/Materials | Build established: Mutant 312 | -10/Materials | Upgraded with Weapon slot (x2) 372 | -10/Materials | Upgraded with Propulsion slot (x1) 428 | -10/Materials | Discovered new exit (range 13) 475 | -10/Materials | Discovered new exit (range 16) 506 | -10/Materials | Entered another Materials area 508 | -9/Materials | Reached level 2 618 | -9/Materials | Build established: Gunner 757 | -9/Materials | Discovered new exit (range 7) 795 | -9/Materials | Core integrity fell below 50% 971 | -9/Materials | Reached level 3 1010 | -9/Materials | Core integrity fell below 20% 1085 | -9/Materials | Upgraded with Utility slot (x1) 1117 | -9/Materials | Build established: Scavenger-Gunner 1175 | -9/Materials | Reached level 4 1309 | -9/Materials | Discovered new exit (range 8) 1513 | -9/Materials | Discovered new exit (range 7) 1861 | -9/Materials | Identified exit to Mines 1861 | -9/Materials | Identified exit to Storage 1999 | -9/Materials | Entered Mines 2429 | -9/Mines | Build established: Gunner 2549 | -9/Mines | Discovered new exit (range 13) 2615 | -9/Mines | Assisted by bots powering up and referring to "LRC-V3" 2867 | -9/Mines | Deemed a non-threat by the Exiles lab entrance 2867 | -9/Mines | Discovered new exit (range 5) 3015 | -9/Mines | Entered Exiles 3015 | -9/Exiles | Accompanied by 3 allies 3017 | -9/Exiles | Reached level 5 3060 | -9/Exiles | Discovered new exit (range 14) 3108 | -9/Exiles | Met 8R-AWN 3141 | -9/Exiles | Met EX-HEX 3297 | -9/Exiles | Met EX-DEC 3510 | -9/Exiles | Discovered new exit (range 15) 3634 | -9/Exiles | Met EX-BIN 3828 | -9/Exiles | Aligned with FarCom system 3830 | -9/Exiles | Given EX-Vault access code 3878 | -9/Exiles | Opened EX-Vault 3945 | -9/Exiles | Warned to stay clear of 0b10 Research branches 4421 | -9/Exiles | Visited The Gauntlet 4882 | -9/Exiles | Entered Mines 4882 | -8/Mines | Accompanied by 3 allies 5188 | -8/Mines | Build established: Skirmisher 5295 | -8/Mines | Reached level 6 5792 | -8/Mines | Discovered new exit (range 8) 5856 | -8/Mines | Entered Materials 5857 | -8/Materials | Core integrity fell below 50% 5858 | -8/Materials | Reached level 7 5901 | -8/Materials | Upgraded with Utility slot (x1) 6056 | -8/Materials | Upgraded with Utility slot (x1) 6074 | -8/Materials | Reached level 8 6362 | -8/Materials | Build established: Gunner 6366 | -8/Materials | Discovered new exit (range 16) 6450 | -8/Materials | Entered Factory 6451 | -7/Factory | Core integrity fell below 50% 6452 | -7/Factory | Reached level 9 6962 | -7/Factory | Garrison activated, responded to threat 6966 | -7/Factory | Core integrity fell below 20% 6976 | -7/Factory | Reached level 10 7302 | -7/Factory | Destroyed by P-60 Hacker with Shock Rifle Last Messages --------------- 07020_ U-05 Engineer lays Concrete. 07022_ K-01 Serf collects debris. 07025_ Connecting with Garrison Access... 07028_ K-01 Serf collects debris. 07038_ K-01 Serf cleans the Garrison Access. 07038_ K-01 Serf collects debris. 07044_ K-01 Serf cleans the Garrison Access. 07046_ K-01 Serf cleans the Assembly Bed. 07052_ K-01 Serf cleans the Garrison Access. 07061_ Field Recycling Unit collects Lightning Gun, recycling 7 matter... 07081_ Field Recycling Unit collects Gauss Cannon, recycling 20 matter... 07201_ Y-54 Guardian destroyed. 07203_ Acquired 46 matter. 07243_ Y-54 Guardian destroyed. 07249_ Acquired 33 matter. 07256_ K-01 Serf collects debris. 07284_ ALERT: Rogue bot located, Programmers report to Factory Zone 8R. 07296_ Critical hit. 07301_ K-01 Serf knocked back. [Achievement: 5k Club] Map ----- +----------------------------------------------------+ | ?????????????????????????????????????????????????? | | ?????????????????????????????????????????????????? | | ?????????????????????????????????????????????????? | | ?????????????????????????????????????????????????? | | ?????????????????????????????????????????????????? | | ?????????????????????????????????????????????????? | | ?????????????????????????????????????????????????? | | ?????????????????????????????????????????????????? | | ?????????????????????????????????????????????????? | | ?????????????????????????????????????????????????? | | ?????????????????????????????????????????????????? | | ?????????????????????????????????????????????????? | | ?????????????????????????????????????????????????? | | ?????????????????????????????????????????????????? | | ??????????????????????????????????????w??????????? | | ?????????????????????????????????????????????????? | | ?????????????????????????????????????????????????? | | ???????????????????????????????? ????????????????? | | ???????????????????????????????" ????????????????? | | ??????????????????????????????? ????? ""????????? | | ??????????????????????????????? ????? ????????? | | ??????????????????????????????? ???? ""????????? | | ??????????????????????????????? ???? """ "?????? | | ?????????????###+###############+#### """ """???? | | ?????????? k p a k ???? | | ?????????? @ ==??? | | ?????????? =???? | | ?????????? ??? | | ??????????? k ???? | | ??????????? u###+##########t #??????? | | ???????????? ???????????????# #??????? | | ?????????????????????????????#"" #??????? | | ?????????????????????????????#"" """""" / ?????? | | ?????????????????????????????#G """""" ?#??????? | | ????????????????##############"" """""" #??????? | | ????????????????# #"" """""" #??????? | | ????????????????# # #??????? | | ????????????????# # """""" #??????? | | ????????????????# # """""" #??????? | | ????????????????# """"" # """""" #??????? | | ????????????????# """"" / """""" #??????? | | ????????????????# """ # #??????? | | ????????????????# # #??????? | | ????????????????# """"" ####+#########??????? | | ????????????????# """"" # #??????? | | ????????????????# """ # #??????? | | ????????????????# # #??????? | | ????????????????############## ##?????? | | ???????????????????????????# # [##?????? | | ???????????????????????????# # # #????? | +----------------------------------------------------+ Best States ------------- Heat Dissipation 91 Energy Generation 14 Energy Capacity 265 Matter Stores 350 Matter Capacity 350 Sight Range 16 Robot Scan Range 10 Terrain Scan Density 10 Armor Coverage 225 Evasion (%) 44 Targeting Accuracy 8 Item Schematics ----------------- None Robot Schematics ------------------ None Fabricated ------------ Nothing Alien Tech Used ----------------- None Achievements -------------- 5k Club Challenges ------------ None RPGLIKE | -11 -10 -9 -9 -9 -8 -8 -7 --------- Run | Scr Mat Mat Min Exi Min Mat Fac Levels Raised 9 | . . 3 . 1 1 2 2 XP Earned 17029 | 3000 1020 4215 750 350 2029 2755 2910 XP Spent 11130 | . 2900 1760 1650 . 2920 1900 . Upgrades 40 | . 4 15 11 . 8 2 . Propulsion Slot 1 | . 1 . . . . . . Utility Slot 3 | . . 1 . . . 2 . Weapon Slot 3 | . 3 . . . . . . Core Integrity 18 | . . 14 . . 4 . . Heat Dissipation 11 | . . . 11 . . . . Ranged Accuracy 4 | . . . . . 4 . . Protomatter Created 453 | . 81 155 9 . 52 111 45 Integrity Restored 1422 | . 243 393 27 . 291 333 135 Core 1422 | . 243 393 27 . 291 333 135 Protomatter Decayed 24 | . . 24 . . . . . Game ------ Seed ZioniteTargetingModule Manual? 0 Play Time 01:02:37 Cumulative 2.9 hours Start 2020.02.28 @ 18:54:55 End 2020.02.28 @ 20:03:12 Sessions 1 Manual Loads 0 Difficulty Rogue Special Mode Winter2019/RPGLIKE Game No. 10 Rogue 10 Adventurer 0 Explorer 0 Win Type - Total 0 Types 0/0/0/0/0/0/0 Lore% 8 Gallery% 9 Achievement% 11 Wizard Run 0 Options --------- ASCII 0 Keyboard 0 Movement Mouse Keybinds 0 Fullscreen 0 Font 28/Smallcaps Map View 76x50 Tactical HUD 1 Map Filters NONE Filters NONE Steam 1 RUN: 3379c82c-ac6a-4735-953b-dc648e12b5b7